bitfinex/quotes_BTCUSD_20230404
["timestamp","ask_amount","ask_price","bid_price","bid_amount"]
[1680608241570,0.02421,28227.0,28226.0,0.42098578]
[1680608242237,0.02421,28227.0,28226.0,0.79278578]
[1680608243013,0.02421,28227.0,28226.0,0.42098578]
[1680608244926,6e-05,28238.0,28228.0,0.40716]
[1680608245203,0.02310001,28249.0,28238.0,0.31596]
[1680608245435,0.02310001,28249.0,28248.0,0.82929]
[1680608245668,0.02310001,28249.0,28248.0,0.46255]
[1680608245897,0.02310001,28249.0,28246.0,0.00018]
[1680608246127,0.02310001,28249.0,28246.0,0.14189681]
[1680608246596,0.02310001,28249.0,28245.0,0.014161]
[1680608246854,0.02310001,28249.0,28243.0,0.07810791]
[1680608247081,0.02310001,28249.0,28248.0,0.028]
[1680608247301,0.02310001,28249.0,28248.0,0.01416]
[1680608247526,0.02310001,28249.0,28248.0,0.0184082]
[1680608247746,0.02310001,28249.0,28248.0,0.01416]
[1680608247974,0.02310001,28249.0,28247.0,0.01416]
[1680608248222,0.02310001,28249.0,28245.0,0.028322]
[1680608248444,0.02310001,28249.0,28247.0,0.01416]
[1680608249315,0.03720759,28248.0,28247.0,0.01416]
[1680608249533,0.03720759,28248.0,28247.0,0.0184082]
[1680608249752,0.03720759,28248.0,28247.0,0.0464082]
[1680608250008,0.03720759,28248.0,28247.0,0.0184082]
[1680608250253,0.03720759,28248.0,28247.0,0.0464082]
[1680608250483,0.03720759,28248.0,28247.0,0.0042482]
[1680608250734,0.03720759,28248.0,28247.0,0.028]
[1680608251426,0.03720759,28248.0,28244.0,0.25018]
[1680608251655,0.03720759,28248.0,28247.0,0.028]
[1680608252000,0.03720759,28248.0,28247.0,0.04216]
[1680608252238,0.03720759,28248.0,28247.0,0.028]
[1680608252466,0.03720759,28248.0,28246.0,0.01416]
[1680608252685,0.03720759,28248.0,28247.0,0.023]
[1680608252897,0.03720759,28248.0,28247.0,0.042481]
[1680608253119,0.03714099,28248.0,28247.0,0.070481]
[1680608253352,0.03714099,28248.0,28247.0,0.0831936]
[1680608254078,0.03714099,28248.0,28247.0,0.3051936]
[1680608254331,1e-08,28249.0,28248.0,0.3718]
[1680608254561,1e-08,28249.0,28248.0,1.46176737]
[1680608254787,1e-08,28249.0,28248.0,1.14718409]
[1680608255014,1e-08,28249.0,28248.0,1.16508129]
[1680608255236,1e-08,28249.0,28248.0,0.77556409]
[1680608255471,1e-08,28249.0,28248.0,0.01434]
[1680608255700,1e-08,28249.0,28248.0,0.01416]
[1680608255919,1e-08,28249.0,28248.0,0.028]
[1680608256165,1e-08,28249.0,28247.0,0.01416]
[1680608256395,1e-08,28249.0,28248.0,0.028]
[1680608256619,1e-08,28249.0,28248.0,0.018376]
[1680608256830,1e-08,28249.0,28248.0,0.04216]
[1680608257058,1e-08,28249.0,28248.0,0.01416]
[1680608257271,1e-08,28249.0,28248.0,0.04216]
[1680608258394,1e-08,28249.0,28248.0,0.01416]
[1680608258614,1e-08,28249.0,28248.0,0.04216]
[1680608258825,1e-08,28249.0,28248.0,0.0212081]
[1680608259048,1e-08,28249.0,28248.0,0.0492081]
[1680608259266,1e-08,28249.0,28248.0,0.0212081]
[1680608259478,1e-08,28249.0,28248.0,0.0492081]
[1680608260391,1e-08,28249.0,28248.0,0.0212081]
[1680608261262,1e-08,28249.0,28248.0,0.4210081]
[1680608261484,1e-08,28249.0,28248.0,0.3930081]
[1680608261926,1e-08,28249.0,28248.0,0.4210081]
[1680608263312,1e-08,28249.0,28248.0,0.7210081]
[1680608264463,1e-08,28249.0,28245.0,0.25]
[1680608264720,1e-08,28249.0,28243.0,0.0496452]
[1680608264721,0.02307901,28249.0,28243.0,0.0496452]
[1680608264943,0.02307901,28249.0,28243.0,0.0363712]
[1680608264944,0.016,28246.0,28243.0,0.0363712]
[1680608265205,0.070804,28245.0,28232.0,0.014228]
[1680608265429,0.058407,28244.0,28231.0,0.07091184]
[1680608265665,0.037245,28241.0,28231.0,0.07091184]
[1680608265887,0.046332,28240.0,28231.0,0.21280865]
[1680608266132,0.016,28241.0,28231.0,0.07091184]
[1680608266361,0.016,28241.0,28232.0,0.04866118]
[1680608266583,0.023081,28241.0,28232.0,0.14207681]
[1680608267030,0.048088,28240.0,28233.0,0.14189681]
[1680608267251,0.04992,28239.0,28233.0,0.14207681]
[1680608267475,0.2199,28239.0,28233.0,0.00018]
[1680608267715,0.177062,28239.0,28232.0,0.00018]
[1680608267921,0.177062,28239.0,28233.0,0.008]
[1680608268145,0.007082,28239.0,28233.0,0.00818]
[1680608268371,0.007082,28239.0,28233.0,0.14189681]
[1680608268618,0.007082,28239.0,28233.0,0.14207681]
[1680608268846,0.007082,28239.0,28233.0,0.15007681]
[1680608268847,0.001,28239.0,28233.0,0.15007681]
[1680608269086,0.001,28239.0,28233.0,0.14989681]
[1680608269087,0.056515,28239.0,28233.0,0.14989681]
[1680608269304,0.056515,28239.0,28233.0,0.15007681]
[1680608269305,0.050027,28238.0,28233.0,0.15007681]
[1680608269528,0.050027,28238.0,28233.0,0.00818]
[1680608269748,0.001,28239.0,28233.0,0.14989681]
[1680608269963,0.273081,28241.0,28233.0,0.14189681]
[1680608270187,0.001,28239.0,28234.0,0.14189681]
[1680608270409,0.007082,28239.0,28234.0,0.01500768]
[1680608270629,0.053214,28238.0,28233.0,0.008]
[1680608270854,0.007082,28238.0,28231.0,0.12020474]
[1680608271072,0.007082,28238.0,28233.0,0.008]
[1680608271292,0.007082,28238.0,28231.0,0.12038474]
[1680608271520,0.008082,28238.0,28233.0,0.008]
[1680608271741,0.008082,28238.0,28234.0,0.14189681]
[1680608271742,0.001,28238.0,28234.0,0.14189681]
[1680608271968,0.016,28241.0,28234.0,0.14189681]
[1680608271969,6e-05,28240.0,28235.0,0.200736]
[1680608272197,0.00018,28246.0,28236.0,1.16602339]
[1680608272454,0.00018001,28249.0,28239.0,0.191204]
[1680608272677,0.02421001,28249.0,28240.0,0.14189681]
[1680608272901,0.03128901,28249.0,28241.0,0.03331008]
[1680608273117,0.03128901,28249.0,28242.0,0.14189681]
[1680608273118,0.28128901,28249.0,28242.0,0.14189681]
[1680608273340,0.002,28246.0,28242.0,0.14189681]
[1680608273554,0.002,28246.0,28240.0,0.04954235]
[1680608273555,0.00708,28246.0,28240.0,0.04954235]
[1680608273831,0.021241,28246.0,28240.0,0.04954235]
[1680608274050,0.16998,28245.0,28235.0,0.25018]
[1680608274266,0.16998,28245.0,28242.0,0.007]
[1680608274267,0.0085,28244.0,28242.0,0.007]
[1680608274701,0.0085,28244.0,28236.0,0.04995814]
[1680608274926,0.015581,28244.0,28237.0,0.009613]
[1680608275143,0.015581,28244.0,28237.0,0.15150981]
[1680608275389,0.185561,28244.0,28236.0,0.04995814]
[1680608275607,0.185561,28244.0,28240.0,0.013]
[1680608275830,0.185561,28244.0,28236.0,0.19185495]
[1680608275831,0.016,28242.0,28236.0,0.19185495]
[1680608276054,0.023081,28242.0,28237.0,0.016]
[1680608276280,0.193061,28242.0,28236.0,0.04995814]
[1680608276499,0.193061,28242.0,28240.0,0.001]
[1680608276725,0.023261,28242.0,28240.0,0.001]
[1680608276946,0.05031,28241.0,28236.0,0.04995814]
[1680608277161,0.007081,28241.0,28237.0,0.007]
[1680608277384,0.007081,28241.0,28236.0,0.04995814]
[1680608277628,0.007081,28241.0,28233.0,0.00018]
[1680608277629,0.0159,28239.0,28233.0,0.00018]
[1680608277848,0.0159,28239.0,28231.0,0.07073184]
[1680608277849,0.3718,28237.0,28231.0,0.02068323]
[1680608278073,0.016,28234.0,28231.0,0.02068323]
[1680608278294,0.070153,28233.0,28231.0,0.02068323]
[1680608278514,0.051398,28232.0,28231.0,0.02068323]
[1680608278735,0.00018,28234.0,28231.0,0.02068323]
[1680608279014,0.0085,28234.0,28231.0,0.02068323]
[1680608279253,0.049407,28233.0,28231.0,0.02068323]
[1680608279464,0.226531,28233.0,28231.0,0.02068323]
[1680608279680,0.049514,28232.0,28231.0,0.02068323]
[1680608281468,0.050514,28232.0,28231.0,0.02068323]
[1680608281684,0.001,28232.0,28231.0,0.02068323]
[1680608281919,0.021252,28232.0,28231.0,0.02068323]
[1680608282139,0.094602,28232.0,28231.0,0.02068323]
[1680608282360,0.053434,28232.0,28231.0,0.02068323]
[1680608282579,0.04635,28232.0,28231.0,0.02068323]
[1680608283011,0.07335,28232.0,28231.0,0.02068323]
[1680608283235,0.027,28232.0,28231.0,0.02068323]
[1680608283884,0.17004,28234.0,28231.0,0.02068323]
[1680608284131,0.012,28232.0,28231.0,0.02068323]
[1680608284566,0.177123,28235.0,28231.0,0.02068323]
[1680608284792,0.027,28232.0,28231.0,0.02068323]
[1680608285022,0.00012,28235.0,28231.0,0.16258004]
[1680608285261,0.0491822,28237.0,28232.0,0.16758381]
[1680608285530,0.00018,28238.0,28233.0,0.14189681]
[1680608285758,0.04921898,28238.0,28233.0,0.15978061]
[1680608285971,0.04921898,28238.0,28234.0,0.009013]
[1680608286192,0.04921898,28238.0,28233.0,0.15978061]
[1680608286411,0.04921898,28238.0,28234.0,0.16567081]
[1680608286641,0.04921898,28238.0,28235.0,0.02118896]
[1680608286874,0.16998,28243.0,28237.0,0.25]
[1680608286875,0.17016,28243.0,28237.0,0.25]
[1680608287111,0.2191183,28243.0,28238.0,0.14189681]
[1680608287334,0.2192983,28243.0,28238.0,0.14189681]
[1680608287557,0.0493183,28243.0,28238.0,0.14189681]
[1680608288044,0.0523183,28243.0,28239.0,0.009191]
[1680608288268,0.0523183,28243.0,28236.0,0.264346]
[1680608288269,0.02678381,28242.0,28236.0,0.264346]
[1680608288492,0.02678381,28242.0,28238.0,0.004]
[1680608288713,0.02678381,28242.0,28237.0,0.009541]
[1680608288932,0.02678381,28242.0,28237.0,0.16560281]
[1680608289165,0.02678381,28242.0,28237.0,0.71446281]
[1680608289628,0.02678381,28242.0,28239.0,0.004]
[1680608289849,0.02678381,28242.0,28240.0,0.014164]
[1680608290067,0.02878381,28242.0,28240.0,0.014164]
[1680608290283,0.002,28242.0,28240.0,0.014164]
[1680608290500,0.00863428,28246.0,28240.0,0.014164]
[1680608290723,0.001,28242.0,28241.0,0.21267784]
[1680608290960,0.04931551,28247.0,28241.0,0.11327103]
[1680608291181,0.04931551,28247.0,28242.0,0.14189681]
[1680608291617,0.04931551,28247.0,28242.0,0.15605981]
[1680608291868,0.04931551,28247.0,28243.0,0.02278408]
[1680608292749,0.05231551,28247.0,28243.0,0.02278408]
[1680608292978,0.04913551,28247.0,28243.0,0.02278408]
[1680608293200,0.05213551,28247.0,28243.0,0.02678408]
[1680608293417,0.05231551,28247.0,28243.0,0.004]
[1680608293629,0.05213551,28247.0,28243.0,0.004]
[1680608294059,0.04913551,28247.0,28242.0,0.014163]
[1680608294277,0.02635543,28246.0,28243.0,0.013425]
[1680608294491,0.02635543,28246.0,28243.0,0.004]
[1680608295136,0.003,28247.0,28243.0,0.004]
[1680608295350,0.01008,28247.0,28243.0,0.004]
[1680608295569,0.00708,28247.0,28241.0,0.07078103]
[1680608295808,0.003,28246.0,28243.0,0.004]
[1680608296033,0.00726,28248.0,28241.0,0.21267784]
[1680608296251,0.02635543,28246.0,28243.0,0.004]
[1680608296465,0.02635543,28246.0,28244.0,0.010042]
[1680608296681,0.02635543,28246.0,28244.0,0.052528]
[1680608296905,0.02935543,28246.0,28244.0,0.024204]
[1680608297131,0.00018,28248.0,28244.0,0.024204]
[1680608297369,0.04968918,28249.0,28245.0,0.65274971]
[1680608297370,0.002,28246.0,28245.0,0.65274971]
[1680608297593,0.0001,28246.0,28245.0,0.6099839]
[1680608297816,0.0001,28246.0,28245.0,0.7869739]
[1680608298528,1e-08,28249.0,28245.0,0.0194139]
[1680608298752,0.002,28246.0,28245.0,0.0194139]
[1680608298972,1e-08,28249.0,28245.0,0.0194139]
[1680608299191,0.003,28246.0,28245.0,0.0254139]
[1680608299418,1e-08,28249.0,28245.0,0.0194139]
[1680608299651,0.00100001,28249.0,28245.0,0.0254139]
[1680608299885,1e-08,28249.0,28245.0,0.0052529]
[1680608300113,0.003,28246.0,28245.0,0.0112529]
[1680608300341,0.016,28248.0,28244.0,0.010042]
[1680608300561,0.016,28248.0,28238.0,0.36233769]
[1680608300562,0.02308,28248.0,28240.0,0.423964]
[1680608300803,0.02308,28248.0,28241.0,0.0518564]
[1680608301026,0.02308,28248.0,28241.0,0.0423964]
[1680608301275,0.02658932,28247.0,28241.0,0.0423964]
[1680608301503,0.02658932,28247.0,28245.0,0.006]
[1680608301725,0.02658932,28247.0,28241.0,0.0423964]
[1680608301726,0.02658932,28247.0,28241.0,0.0483964]
[1680608301942,0.02676932,28247.0,28241.0,0.0483964]
[1680608302167,0.02676932,28247.0,28241.0,0.0565594]
[1680608302391,0.02958932,28247.0,28241.0,0.0615594]
[1680608302611,0.02958932,28247.0,28242.0,0.009498]
[1680608302831,0.02658932,28247.0,28243.0,0.02129542]
[1680608303058,0.02958932,28247.0,28241.0,0.45345621]
[1680608303320,0.02958932,28247.0,28242.0,0.009482]
[1680608304207,0.02658932,28247.0,28242.0,0.009482]
[1680608304426,0.02758932,28247.0,28243.0,0.005]
[1680608304709,0.02758932,28247.0,28242.0,0.023645]
[1680608304710,0.02658932,28247.0,28242.0,0.023645]
[1680608304928,0.02858932,28247.0,28242.0,0.028645]
[1680608305149,0.02858932,28247.0,28242.0,0.11543682]
[1680608305365,0.02858932,28247.0,28242.0,0.25733363]
[1680608305589,0.02858932,28247.0,28243.0,0.25]
[1680608305815,0.02858932,28247.0,28243.0,0.014162]
[1680608306040,0.02858932,28247.0,28243.0,0.0719856]
[1680608306934,0.02658932,28247.0,28243.0,0.0719856]
[1680608307167,0.02758932,28247.0,28244.0,0.009497]
[1680608307389,0.02658932,28247.0,28244.0,0.009497]
[1680608307627,0.02758932,28247.0,28244.0,0.009497]
[1680608307851,0.02658932,28247.0,28244.0,0.009497]
[1680608308070,0.02758932,28247.0,28244.0,0.014497]
[1680608308297,0.02758932,28247.0,28244.0,0.04548644]
[1680608308536,0.02758932,28247.0,28244.0,0.18738325]
[1680608308757,0.02758932,28247.0,28245.0,0.25]
[1680608308981,0.02758932,28247.0,28246.0,0.014161]
[1680608309208,0.001,28247.0,28246.0,0.014161]
[1680608309433,0.001,28247.0,28245.0,0.264161]
[1680608309650,0.001,28247.0,28246.0,0.014161]
[1680608310382,0.001,28247.0,28246.0,0.385961]
[1680608310824,1e-08,28249.0,28246.0,0.386961]
[1680608311047,1e-08,28249.0,28247.0,0.1338]
[1680608311267,1e-08,28249.0,28248.0,0.470921]
[1680608311499,1e-08,28249.0,28248.0,0.5325931]
[1680608311942,0.00200001,28249.0,28248.0,0.5325931]
[1680608312603,0.00200001,28249.0,28248.0,0.1607931]
[1680608312837,0.00200001,28249.0,28247.0,0.1338]
[1680608312838,1e-08,28249.0,28247.0,0.01416]
[1680608313061,1e-08,28249.0,28244.0,0.02650444]
[1680608313281,0.00200001,28249.0,28248.0,0.012]
[1680608313958,0.00200001,28249.0,28242.0,0.014163]
[1680608313959,1e-08,28249.0,28242.0,0.014163]
[1680608314201,0.02727239,28249.0,28244.0,0.011]
[1680608314423,0.02727239,28249.0,28243.0,0.009587]
[1680608314424,0.02527239,28249.0,28243.0,0.009587]
[1680608314640,0.03127239,28249.0,28248.0,0.001]
[1680608314862,0.02527239,28249.0,28243.0,0.239657]
[1680608315099,0.02527239,28249.0,28244.0,0.009949]
[1680608315992,0.02727239,28249.0,28244.0,0.009949]
[1680608316219,0.02927239,28249.0,28244.0,0.020949]
[1680608316493,0.02927239,28249.0,28244.0,0.0494601]
[1680608316710,0.02927239,28249.0,28244.0,0.20551891]
[1680608317149,0.02927239,28249.0,28244.0,0.0636221]
[1680608317592,0.02527239,28249.0,28244.0,0.0526221]
[1680608317839,0.02727239,28249.0,28244.0,0.0636221]
[1680608318064,0.02727239,28249.0,28245.0,0.00919471]
[1680608318298,0.02727239,28249.0,28245.0,0.02335571]
[1680608318967,0.02527239,28249.0,28245.0,0.02335571]
[1680608319184,0.02627239,28249.0,28246.0,0.009257]
[1680608319416,0.02627239,28249.0,28246.0,0.023418]
[1680608320079,0.00358225,28248.0,28246.0,0.023418]
[1680608320347,0.00358225,28248.0,28246.0,0.014161]
[1680608320569,0.00358225,28248.0,28247.0,0.009856]
[1680608320782,0.00358225,28248.0,28247.0,0.024016]
[1680608321139,0.00358225,28248.0,28247.0,0.009856]
[1680608321348,0.00358225,28248.0,28247.0,0.024016]
[1680608321769,0.00458225,28248.0,28247.0,0.024016]
[1680608321999,0.00358225,28248.0,28247.0,0.05577966]
[1680608322208,0.02310001,28251.0,28247.0,0.05677966]
[1680608322642,1.27436874,28250.0,28247.0,0.05677966]
[1680608322872,1.27436874,28250.0,28247.0,0.04710366]
[1680608323077,0.02426036,28249.0,28247.0,0.22310366]
[1680608323295,0.02426036,28249.0,28248.0,0.34744133]
[1680608323502,0.02426036,28249.0,28248.0,0.36178133]
[1680608324318,0.02310001,28251.0,28248.0,0.73358133]
[1680608324994,0.002,28249.0,28248.0,0.74658133]
[1680608325223,0.02310001,28251.0,28248.0,0.73358133]
[1680608325457,0.02510001,28251.0,28250.0,0.25]
[1680608325682,0.02510001,28251.0,28250.0,0.264339]
[1680608325919,0.02310001,28251.0,28250.0,0.264339]
[1680608326108,0.02310001,28251.0,28250.0,0.636139]
[1680608327257,0.02510001,28251.0,28250.0,0.649139]
[1680608327477,0.02310001,28251.0,28250.0,0.748902]
[1680608327692,0.02410001,28251.0,28250.0,0.761902]
[1680608328345,0.02410001,28251.0,28250.0,0.748902]
[1680608328346,0.02310001,28251.0,28250.0,0.748902]
[1680608328559,0.02310001,28251.0,28250.0,0.818539]
[1680608328560,0.02510001,28251.0,28250.0,0.818539]
[1680608328779,0.02310001,28251.0,28250.0,0.805539]
[1680608328981,0.02410001,28251.0,28250.0,0.818539]
[1680608329196,0.02310001,28251.0,28250.0,0.805539]
[1680608330204,0.02510001,28251.0,28250.0,0.818539]
[1680608330417,0.02310001,28251.0,28250.0,0.805539]
[1680608330634,0.02510001,28251.0,28250.0,0.761902]
[1680608330875,0.02510001,28251.0,28250.0,0.938882]
[1680608331084,0.02510001,28251.0,28250.0,0.761902]
[1680608331313,0.02510001,28251.0,28250.0,0.747743]
[1680608331516,0.02510001,28251.0,28250.0,0.761902]
[1680608333146,0.02510001,28251.0,28250.0,0.125943]
[1680608333380,0.02510001,28251.0,28250.0,0.01318]
[1680608334404,0.02510001,28251.0,28250.0,0.027339]
[1680608334615,0.02510001,28251.0,28250.0,0.01318]
[1680608335035,0.02510001,28251.0,28250.0,0.027339]
[1680608335249,0.02510001,28251.0,28250.0,0.1256401]
[1680608335694,0.02510001,28251.0,28250.0,0.1114811]
[1680608336269,0.02510001,28251.0,28250.0,0.01318]
[1680608338808,0.02510001,28251.0,28250.0,0.013]
[1680608339215,0.02510001,28251.0,28250.0,0.01318]
[1680608340542,0.02510001,28251.0,28250.0,0.027339]
[1680608340767,0.02510001,28251.0,28250.0,0.01318]
[1680608340989,0.02510001,28251.0,28250.0,0.05065803]
[1680608341904,0.02510001,28251.0,28250.0,0.06481703]
[1680608345021,0.02510001,28251.0,28250.0,0.06631703]
[1680608345899,0.02510001,28251.0,28250.0,0.43811703]
[1680608350178,0.02510001,28251.0,28250.0,0.06631703]
[1680608350608,0.02510001,28251.0,28250.0,0.31631703]
[1680608352169,0.02510001,28251.0,28250.0,0.06631703]
[1680608352392,0.02510001,28251.0,28250.0,0.05215803]
[1680608352629,0.02510001,28251.0,28250.0,0.01318]
[1680608352823,0.02510001,28251.0,28250.0,0.013]
[1680608353331,0.02510001,28251.0,28250.0,0.022492]
[1680608353552,0.02510001,28251.0,28250.0,0.013]
[1680608353997,0.02310001,28251.0,28249.0,0.014339]
[1680608354218,0.02410001,28251.0,28250.0,0.018046]
[1680608354445,0.03117901,28251.0,28250.0,0.018046]
[1680608354724,0.03117901,28251.0,28246.0,1.41802923]
[1680608354725,0.02310001,28251.0,28248.0,0.00018]
[1680608354944,0.03217901,28251.0,28250.0,0.012]
[1680608355186,0.02510001,28251.0,28250.0,0.012]
[1680608355630,0.07368987,28251.0,28250.0,0.012]
[1680608356043,0.02538587,28251.0,28250.0,0.012]
[1680608356271,0.04401605,28251.0,28247.0,0.00018]
[1680608356493,0.04201605,28251.0,28247.0,0.03863923]
[1680608356722,0.04301605,28251.0,28248.0,0.012]
[1680608356938,0.04301605,28251.0,28248.0,0.00018]
[1680608357174,0.04301605,28251.0,28250.0,0.001]
[1680608357401,0.04201605,28251.0,28248.0,0.00018]
[1680608357631,0.04401605,28251.0,28249.0,0.00386392]
[1680608357854,0.04201605,28251.0,28249.0,0.00386392]
[1680608358077,0.04201605,28251.0,28250.0,0.001]
[1680608358778,0.04201605,28251.0,28249.0,0.00386392]
[1680608359553,0.04301605,28251.0,28249.0,0.008]
[1680608359754,0.04201605,28251.0,28248.0,0.00018]
[1680608360042,0.04301605,28251.0,28249.0,0.008]
[1680608360246,0.04201605,28251.0,28248.0,0.00018]
[1680608360455,0.04201605,28251.0,28248.0,0.01050038]
[1680608360685,0.04201605,28251.0,28249.0,0.00792511]
[1680608360686,0.04301605,28251.0,28249.0,0.00792511]
[1680608360908,0.04301605,28251.0,28245.0,0.014161]
[1680608360909,0.015,28249.0,28245.0,0.014161]
[1680608361573,0.015,28249.0,28248.0,0.008]
[1680608362191,0.03063836,28249.0,28248.0,0.008]
[1680608362680,0.03063836,28249.0,28245.0,0.014161]
[1680608362909,0.015,28248.0,28245.0,0.07642952]
[1680608363130,0.015,28248.0,28245.0,0.06442952]
[1680608363565,0.015,28248.0,28245.0,0.31442952]
[1680608363757,0.015,28248.0,28246.0,0.008784]
[1680608363973,0.015,28248.0,28246.0,0.08031757]
[1680608364401,0.016,28248.0,28246.0,0.08031757]
[1680608364609,0.016,28248.0,28246.0,0.06615757]
[1680608364610,0.015,28248.0,28246.0,0.06615757]
[1680608364822,0.015,28248.0,28246.0,0.05737357]
[1680608365255,0.01648381,28247.0,28245.0,0.05026852]
[1680608365707,0.01676888,28247.0,28245.0,0.05026852]
[1680608365926,0.01676888,28247.0,28246.0,0.008]
[1680608366108,0.01676888,28247.0,28245.0,0.05026852]
[1680608366317,0.01776888,28247.0,28245.0,0.06226852]
[1680608366526,0.01776888,28247.0,28245.0,0.012]
[1680608368625,0.01676888,28247.0,28244.0,0.08400769]
[1680608368837,0.01776888,28247.0,28245.0,0.008]
[1680608369058,0.01583933,28247.0,28245.0,0.008]
[1680608370793,0.0081,28246.0,28245.0,0.02981992]
[1680608371248,0.0081,28246.0,28245.0,0.07230392]
[1680608371690,0.0081,28246.0,28245.0,0.03598092]
[1680608371912,0.0081,28246.0,28245.0,0.02181992]
[1680608372149,0.0091,28246.0,28245.0,0.02981992]
[1680608372368,0.0091,28246.0,28245.0,0.008]
[1680608372811,0.0091,28246.0,28245.0,0.017794]
[1680608373035,0.001,28246.0,28245.0,0.580765]
[1680608373257,0.001,28246.0,28245.0,0.66477269]
[1680608373477,0.001,28246.0,28245.0,0.79416795]
[1680608373698,0.02328001,28251.0,28245.0,0.78616795]
[1680608373926,0.02310001,28251.0,28247.0,0.25]
[1680608374154,0.02310001,28251.0,28248.0,0.01416]
[1680608374371,0.01628355,28250.0,28249.0,0.04060568]
[1680608374819,0.01628355,28250.0,28247.0,0.15605681]
[1680608375093,0.01628355,28250.0,28248.0,0.009707]
[1680608375549,0.01728355,28250.0,28249.0,0.007]
[1680608375771,0.01628355,28250.0,28248.0,0.009707]
[1680608376004,0.01728355,28250.0,28248.0,0.02378757]
[1680608376225,0.01728355,28250.0,28249.0,0.042478]
[1680608376451,0.01728355,28250.0,28248.0,0.01078757]
[1680608376452,0.01628355,28250.0,28248.0,0.01078757]
[1680608376656,0.01728355,28250.0,28249.0,0.007]
[1680608376816,0.01728355,28250.0,28249.0,0.02677876]
[1680608376817,0.01628355,28250.0,28249.0,0.02677876]
[1680608377053,0.01728355,28250.0,28249.0,0.02677876]
[1680608377865,0.01628355,28250.0,28249.0,0.02677876]
[1680608378067,0.01728355,28250.0,28249.0,0.03377876]
[1680608379718,0.02538355,28250.0,28249.0,0.007]
[1680608380864,0.02438355,28250.0,28245.0,0.31733662]
[1680608381082,0.0081,28249.0,28245.0,0.31733662]
[1680608381801,0.0081,28249.0,28245.0,0.25]
[1680608382016,0.0101,28249.0,28245.0,0.283161]
[1680608382234,0.0101,28249.0,28245.0,0.264161]
[1680608382235,0.0081,28249.0,28245.0,0.264161]
[1680608382446,0.0081,28249.0,28245.0,0.39017254]
[1680608382663,0.0101,28249.0,28245.0,0.40917254]
[1680608382874,0.0101,28249.0,28246.0,0.12915109]
[1680608383091,0.0101,28249.0,28246.0,0.14331209]
[1680608383300,0.0101,28249.0,28247.0,0.2]
[1680608383530,0.02328001,28251.0,28247.0,0.21416]
[1680608383751,0.002,28249.0,28247.0,0.35605681]
[1680608383970,0.02310001,28251.0,28248.0,0.04852079]
[1680608384183,0.001,28249.0,28248.0,0.04852079]
[1680608384842,0.02328001,28251.0,28248.0,0.04852079]
[1680608385059,0.001,28249.0,28248.0,0.04852079]
[1680608385320,0.01627203,28249.0,28248.0,0.04852079]
[1680608385727,0.01727203,28249.0,28248.0,0.007]
[1680608386249,0.001,28249.0,28248.0,0.007]
[1680608387349,0.01818791,28249.0,28248.0,0.007]
[1680608387542,0.01847338,28249.0,28248.0,0.007]
[1680608389322,0.00128547,28249.0,28248.0,0.02116]
[1680608389542,0.001,28249.0,28248.0,0.007]
[1680608389764,0.001,28249.0,28248.0,0.07865973]
[1680608389981,0.001,28249.0,28248.0,0.05033973]
[1680608390203,0.001,28249.0,28248.0,0.03617973]
[1680608390450,0.02310001,28251.0,28246.0,0.22496881]
[1680608390683,0.001,28249.0,28248.0,0.007]
[1680608391364,0.01718791,28249.0,28246.0,0.08479727]
[1680608391600,0.01718791,28249.0,28246.0,0.10379727]
[1680608391601,0.01747338,28249.0,28246.0,0.10379727]
[1680608392286,0.00028547,28249.0,28246.0,0.22980881]
[1680608392530,0.00028547,28249.0,28247.0,0.2]
[1680608392751,0.001,28249.0,28248.0,0.007]
[1680608393027,0.03280001,28251.0,28247.0,0.2]
[1680608393233,0.01702654,28248.0,28247.0,0.28479727]
[1680608393461,0.01702654,28248.0,28247.0,0.41302573]
[1680608393658,0.01731181,28248.0,28247.0,0.41302573]
[1680608394352,0.00028527,28248.0,28247.0,0.41302573]
[1680608394547,0.001,28248.0,28247.0,0.42602573]
[1680608395229,0.001,28248.0,28247.0,0.22602573]
[1680608395467,0.001,28248.0,28247.0,0.013]
[1680608396604,0.00128527,28248.0,28247.0,0.013]
[1680608397500,0.001,28248.0,28247.0,0.013]
[1680608397959,0.001,28248.0,28247.0,0.09779727]
[1680608398183,0.001,28248.0,28247.0,0.16197969]
[1680608398184,0.00093519,28248.0,28247.0,0.16197969]
[1680608399962,0.00093519,28248.0,28247.0,0.57499396]
[1680608400183,0.00093519,28248.0,28247.0,0.62131466]
[1680608400419,0.00093519,28248.0,28247.0,0.62132006]
[1680608401026,0.00093519,28248.0,28247.0,0.28806517]
[1680608401030,0.00093519,28248.0,28247.0,0.16205379]
[1680608401305,0.00093519,28248.0,28247.0,0.09787137]
[1680608402450,0.00093519,28248.0,28247.0,0.013]
[1680608402672,0.00122046,28248.0,28247.0,0.013]
[1680608403343,0.01824189,28248.0,28247.0,0.013]
[1680608403575,0.01824189,28248.0,28247.0,0.09787137]
[1680608403797,0.01824189,28248.0,28247.0,0.1384773]
[1680608404257,0.00122046,28248.0,28247.0,0.1384773]
[1680608404703,0.00093519,28248.0,28247.0,0.1384773]
[1680608406009,0.00093519,28248.0,28247.0,0.13901154]
[1680608406234,0.00093519,28248.0,28247.0,0.09786726]
[1680608406664,0.00093519,28248.0,28247.0,0.013]
[1680608407366,0.01765071,28248.0,28247.0,0.013]
[1680608407579,0.01793598,28248.0,28247.0,0.013]
[1680608407806,0.01793598,28248.0,28247.0,0.05218942]
[1680608408027,0.01793598,28248.0,28247.0,0.13705668]
[1680608408248,0.00122046,28248.0,28247.0,0.13705668]
[1680608408708,0.00093519,28248.0,28247.0,0.13705668]
[1680608410934,0.00093519,28248.0,28247.0,0.30554922]
[1680608411145,0.00093519,28248.0,28247.0,0.80682001]
[1680608411356,0.00093519,28248.0,28247.0,0.59632363]
[1680608411769,0.00093519,28248.0,28247.0,0.13706038]
[1680608412708,0.00093519,28248.0,28247.0,0.94308497]
[1680608412937,0.00093519,28248.0,28247.0,1.48322937]
[1680608413389,0.00093519,28248.0,28247.0,1.42658637]
[1680608413623,0.00093519,28248.0,28247.0,1.76018637]
[1680608414706,0.02310001,28251.0,28247.0,1.74718637]